[Event "January 2 Late 2024"]
[Site "https://www.chess.com"]
[Date "2024.01.02"]
[Round "1"]
[White "Seemann, Jakub"]
[Black "ADEBAYO, Adegboyega Joel"]
[Result "1-0"]
[Board "73"]
[TimeControl "180+1"]
[WhiteFideId "21874697"]
[BlackFideId "8500282"]
[WhiteElo "2809"]
[BlackElo "2438"]
[WhiteTeam "POL"]
[BlackTeam "NGR"]
[WhiteClock "0:00:13"]
[BlackClock "0:00:19"]

1. d4 {[%clk 0:03:00]}  c5 {[%clk 0:02:59]} 2. d5 {[%clk 0:03:00]}  e6 {[%clk 0:02:59]} 3. Nc3 {[%clk 0:03:00]}  a6 {[%clk 0:02:58]} 4. a4 {[%clk 0:02:59]}  Nf6 {[%clk 0:02:57]} 5. Nf3 {[%clk 0:02:59]}  d6 {[%clk 0:02:56]} 6. e4 {[%clk 0:02:59]}  exd5 {[%clk 0:02:56]} 7. exd5 {[%clk 0:02:59]}  Be7 {[%clk 0:02:56]} 8. Be2 {[%clk 0:02:59]}  O-O {[%clk 0:02:56]} 9. O-O {[%clk 0:02:59]}  Nbd7 {[%clk 0:02:54]} 10. Nd2 {[%clk 0:02:59]}  Re8 {[%clk 0:02:53]} 11. Nc4 {[%clk 0:02:58]}  Nb6 {[%clk 0:02:53]} 12. Na3 {[%clk 0:02:58]}  Bf8 {[%clk 0:02:49]} 13. a5 {[%clk 0:02:56]}  Nbd7 {[%clk 0:02:50]} 14. Nc4 {[%clk 0:02:57]}  Ne5 {[%clk 0:02:49]} 15. Nxe5 {[%clk 0:02:54]}  Rxe5 {[%clk 0:02:48]} 16. Bf4 {[%clk 0:02:55]}  Re8 {[%clk 0:02:48]} 17. h3 {[%clk 0:02:52]}  Bf5 {[%clk 0:02:47]} 18. Bd3 {[%clk 0:02:51]}  Ne4 {[%clk 0:02:44]} 19. Nxe4 {[%clk 0:02:49]}  Bxe4 {[%clk 0:02:44]} 20. Ra4 {[%clk 0:02:45]}  Bg6 {[%clk 0:02:35]} 21. Bxg6 {[%clk 0:02:45]}  hxg6 {[%clk 0:02:35]} 22. Qd3 {[%clk 0:02:45]}  Qf6 {[%clk 0:02:32]} 23. b3 {[%clk 0:02:41]}  Qf5 {[%clk 0:02:31]} 24. Qd2 {[%clk 0:02:13]}  Rac8 {[%clk 0:02:07]} 25. Rc4 {[%clk 0:02:12]}  Re4 {[%clk 0:01:51]} 26. g4 {[%clk 0:02:06]}  Qxf4 {[%clk 0:01:32]} 27. Qxf4 {[%clk 0:02:05]}  Rxf4 {[%clk 0:01:32]} 28. Rxf4 {[%clk 0:02:06]}  Re8 {[%clk 0:01:24]} 29. Rd1 {[%clk 0:02:06]}  Re2 {[%clk 0:01:20]} 30. Rc4 {[%clk 0:02:06]}  Be7 {[%clk 0:01:20]} 31. Kf1 {[%clk 0:02:06]}  Re5 {[%clk 0:01:18]} 32. f3 {[%clk 0:02:05]}  Bd8 {[%clk 0:01:17]} 33. Re4 {[%clk 0:02:00]}  Rxe4 {[%clk 0:01:15]} 34. fxe4 {[%clk 0:02:01]}  Bxa5 {[%clk 0:01:15]} 35. Ke2 {[%clk 0:02:01]}  Bc3 {[%clk 0:01:12]} 36. Kd3 {[%clk 0:02:00]}  Bf6 {[%clk 0:01:08]} 37. c3 {[%clk 0:02:00]}  g5 {[%clk 0:01:05]} 38. b4 {[%clk 0:02:00]}  cxb4 {[%clk 0:01:00]} 39. cxb4 {[%clk 0:02:01]}  Kf8 {[%clk 0:00:59]} 40. Rc1 {[%clk 0:01:56]}  Bd8 {[%clk 0:00:50]} 41. Rc8 {[%clk 0:01:46]}  Ke7 {[%clk 0:00:50]} 42. Ra8 {[%clk 0:01:42]}  Kd7 {[%clk 0:00:44]} 43. Kc4 {[%clk 0:01:40]}  Kc7 {[%clk 0:00:44]} 44. b5 {[%clk 0:01:35]}  axb5+ {[%clk 0:00:42]} 45. Kxb5 {[%clk 0:01:36]}  Kd7 {[%clk 0:00:42]} 46. Ra1 {[%clk 0:01:29]}  f6 {[%clk 0:00:36]} 47. Rh1 {[%clk 0:01:25]}  Ke7 {[%clk 0:00:32]} 48. Kc4 {[%clk 0:01:24]}  Kd7 {[%clk 0:00:30]} 49. Rh2 {[%clk 0:01:21]}  Kc7 {[%clk 0:00:30]} 50. h4 {[%clk 0:01:18]}  gxh4 {[%clk 0:00:29]} 51. Rxh4 {[%clk 0:01:18]}  Kc8 {[%clk 0:00:24]} 52. Rh7 {[%clk 0:01:18]}  g5 {[%clk 0:00:24]} 53. Kb5 {[%clk 0:01:17]}  Bc7 {[%clk 0:00:18]} 54. Rf7 {[%clk 0:00:59]}  Bd8 {[%clk 0:00:18]} 55. Kc4 {[%clk 0:00:51]}  Kb8 {[%clk 0:00:18]} 56. Kd3 {[%clk 0:00:52]}  Kc8 {[%clk 0:00:18]} 57. Kd4 {[%clk 0:00:36]}  Kb8 {[%clk 0:00:18]} 58. e5 {[%clk 0:00:36]}  fxe5+ {[%clk 0:00:17]} 59. Ke4 {[%clk 0:00:37]}  Kc8 {[%clk 0:00:18]} 60. Kf5 {[%clk 0:00:37]}  b5 {[%clk 0:00:17]} 61. Ke6 {[%clk 0:00:37]}  Bc7 {[%clk 0:00:17]} 62. Kf5 {[%clk 0:00:31]}  Kb7 {[%clk 0:00:17]} 63. Kxg5 {[%clk 0:00:30]}  b4 {[%clk 0:00:17]} 64. Rf1 {[%clk 0:00:24]}  Kb6 {[%clk 0:00:18]} 65. Kf5 {[%clk 0:00:24]}  Bd8 {[%clk 0:00:18]} 66. g5 {[%clk 0:00:19]}  Bxg5 {[%clk 0:00:18]} 67. Kxg5 {[%clk 0:00:20]}  Kc5 {[%clk 0:00:18]} 68. Rd1 {[%clk 0:00:20]}  b3 {[%clk 0:00:18]} 69. Kf5 {[%clk 0:00:18]}  Kc4 {[%clk 0:00:19]} 70. Ke6 {[%clk 0:00:19]}  e4 {[%clk 0:00:19]} 71. Kxd6 {[%clk 0:00:19]}  e3 {[%clk 0:00:20]} 72. Kc6 {[%clk 0:00:15]}  e2 {[%clk 0:00:21]} 73. Rh1 {[%clk 0:00:15]}  b2 {[%clk 0:00:21]} 74. d6 {[%clk 0:00:15]}  Kd3 {[%clk 0:00:22]} 75. d7 {[%clk 0:00:15]}  Kc2 {[%clk 0:00:23]} 76. d8=Q {[%clk 0:00:15]}  b1=Q {[%clk 0:00:23]} 77. Rxb1 {[%clk 0:00:13]}  Kxb1 {[%clk 0:00:19]} 78. Qd2 {[%clk 0:00:13]} 1-0

[Event "January 2 Late 2024"]
[Site "https://www.chess.com"]
[Date "2024.01.02"]
[Round "1"]
[White "Pichot, Alan"]
[Black "Urbina Perez, Juan Antonio"]
[Result "1-0"]
[Board "75"]
[TimeControl "180+1"]
[WhiteFideId "110973"]
[BlackFideId "2217368"]
[WhiteElo "2806"]
[BlackElo "2437"]
[WhiteTeam "ESP"]
[BlackTeam "ESP"]
[WhiteClock "0:00:05"]
[BlackClock "0:00:00"]

1. Nf3 {[%clk 0:03:00]}  d5 {[%clk 0:02:58]} 2. b3 {[%clk 0:02:59]}  Bf5 {[%clk 0:02:57]} 3. Bb2 {[%clk 0:02:59]}  e6 {[%clk 0:02:57]} 4. e3 {[%clk 0:02:59]}  Nf6 {[%clk 0:02:58]} 5. Be2 {[%clk 0:02:59]}  h6 {[%clk 0:02:58]} 6. O-O {[%clk 0:03:00]}  c6 {[%clk 0:02:58]} 7. c4 {[%clk 0:02:56]}  Nbd7 {[%clk 0:02:57]} 8. h3 {[%clk 0:02:56]}  Bd6 {[%clk 0:02:56]} 9. d3 {[%clk 0:02:54]}  Qe7 {[%clk 0:02:55]} 10. Nbd2 {[%clk 0:02:54]}  Ba3 {[%clk 0:02:54]} 11. Qc1 {[%clk 0:02:53]}  Bxb2 {[%clk 0:02:53]} 12. Qxb2 {[%clk 0:02:54]}  O-O {[%clk 0:02:54]} 13. b4 {[%clk 0:02:53]}  Rfd8 {[%clk 0:02:47]} 14. a3 {[%clk 0:02:51]}  e5 {[%clk 0:02:40]} 15. cxd5 {[%clk 0:02:49]}  cxd5 {[%clk 0:02:41]} 16. Rac1 {[%clk 0:02:47]}  Rac8 {[%clk 0:02:41]} 17. Rfd1 {[%clk 0:02:33]}  Bg6 {[%clk 0:02:40]} 18. Nb3 {[%clk 0:02:24]}  b6 {[%clk 0:02:25]} 19. d4 {[%clk 0:02:12]}  e4 {[%clk 0:02:18]} 20. Ne5 {[%clk 0:02:12]}  Rxc1 {[%clk 0:02:16]} 21. Rxc1 {[%clk 0:02:12]}  Nxe5 {[%clk 0:02:14]} 22. dxe5 {[%clk 0:02:12]}  Nd7 {[%clk 0:02:09]} 23. Rc7 {[%clk 0:02:04]}  a5 {[%clk 0:01:42]} 24. Qd4 {[%clk 0:01:48]}  Qe6 {[%clk 0:01:33]} 25. Bg4 {[%clk 0:01:45]}  Bf5 {[%clk 0:01:24]} 26. Bxf5 {[%clk 0:01:20]}  Qxf5 {[%clk 0:01:25]} 27. Qxd5 {[%clk 0:01:19]}  Qxe5 {[%clk 0:01:23]} 28. Qxe5 {[%clk 0:01:13]}  Nxe5 {[%clk 0:01:24]} 29. bxa5 {[%clk 0:01:06]}  bxa5 {[%clk 0:01:25]} 30. Nxa5 {[%clk 0:01:06]}  Rd1+ {[%clk 0:01:24]} 31. Kh2 {[%clk 0:01:07]}  Nd3 {[%clk 0:01:23]} 32. Rc2 {[%clk 0:00:59]}  Ra1 {[%clk 0:01:15]} 33. Nc4 {[%clk 0:00:59]}  g6 {[%clk 0:01:08]} 34. Rd2 {[%clk 0:00:47]}  f5 {[%clk 0:00:55]} 35. f3 {[%clk 0:00:42]}  Rc1 {[%clk 0:00:45]} 36. Nd6 {[%clk 0:00:41]}  exf3 {[%clk 0:00:31]} 37. gxf3 {[%clk 0:00:42]}  Ne5 {[%clk 0:00:25]} 38. Kg2 {[%clk 0:00:43]}  Ra1 {[%clk 0:00:24]} 39. f4 {[%clk 0:00:39]}  Nf7 {[%clk 0:00:21]} 40. Nc4 {[%clk 0:00:30]}  Rc1 {[%clk 0:00:20]} 41. Rd4 {[%clk 0:00:30]}  Ra1 {[%clk 0:00:20]} 42. Kf2 {[%clk 0:00:24]}  g5 {[%clk 0:00:20]} 43. Rd5 {[%clk 0:00:22]}  Ra2+ {[%clk 0:00:19]} 44. Kf3 {[%clk 0:00:21]}  gxf4 {[%clk 0:00:19]} 45. exf4 {[%clk 0:00:22]}  Rc2 {[%clk 0:00:19]} 46. Ne3 {[%clk 0:00:21]}  Rc3 {[%clk 0:00:18]} 47. a4 {[%clk 0:00:22]}  Ra3 {[%clk 0:00:17]} 48. a5 {[%clk 0:00:22]}  Kg7 {[%clk 0:00:15]} 49. Rxf5 {[%clk 0:00:22]}  Kg6 {[%clk 0:00:15]} 50. Rd5 {[%clk 0:00:22]}  h5 {[%clk 0:00:14]} 51. Ke4 {[%clk 0:00:21]}  Ra4+ {[%clk 0:00:13]} 52. Kf3 {[%clk 0:00:20]}  Kf6 {[%clk 0:00:12]} 53. Rxh5 {[%clk 0:00:20]}  Nd6 {[%clk 0:00:08]} 54. Rd5 {[%clk 0:00:19]}  Ke6 {[%clk 0:00:07]} 55. Re5+ {[%clk 0:00:18]}  Kf7 {[%clk 0:00:06]} 56. h4 {[%clk 0:00:19]}  Ra3 {[%clk 0:00:06]} 57. Kg4 {[%clk 0:00:15]}  Ne8 {[%clk 0:00:05]} 58. h5 {[%clk 0:00:08]}  Nf6+ {[%clk 0:00:05]} 59. Kg5 {[%clk 0:00:08]}  Nd7 {[%clk 0:00:05]} 60. Rf5+ {[%clk 0:00:07]}  Ke6 {[%clk 0:00:06]} 61. Ng4 {[%clk 0:00:05]}  Ra4 {[%clk 0:00:03]} 62. h6 {[%clk 0:00:05]}  Ke7 {[%clk 0:00:00]} 63. h7 {[%clk 0:00:05]} 1-0

[Event "January 2 Late 2024"]
[Site "https://www.chess.com"]
[Date "2024.01.02"]
[Round "1"]
[White "Jaque Gutierrez, Matias"]
[Black "Lashkin, Jegor"]
[Result "0-1"]
[Board "76"]
[TimeControl "180+1"]
[WhiteFideId "3426980"]
[BlackFideId "13907808"]
[WhiteElo "2435"]
[BlackElo "2791"]
[WhiteTeam "CHI"]
[BlackTeam "MDA"]
[WhiteClock "0:00:00"]
[BlackClock "0:00:25"]

1. Nf3 {[%clk 0:02:57]}  d5 {[%clk 0:02:59]} 2. c4 {[%clk 0:02:57]}  d4 {[%clk 0:02:55]} 3. e3 {[%clk 0:02:56]}  Nc6 {[%clk 0:02:55]} 4. exd4 {[%clk 0:02:37]}  Nxd4 {[%clk 0:02:56]} 5. Nxd4 {[%clk 0:02:37]}  Qxd4 {[%clk 0:02:57]} 6. d3 {[%clk 0:02:37]}  g6 {[%clk 0:02:53]} 7. Nc3 {[%clk 0:02:37]}  c6 {[%clk 0:02:53]} 8. Be3 {[%clk 0:02:37]}  Qd8 {[%clk 0:02:52]} 9. d4 {[%clk 0:02:26]}  Nh6 {[%clk 0:02:52]} 10. Be2 {[%clk 0:02:18]}  Nf5 {[%clk 0:02:52]} 11. O-O {[%clk 0:02:18]}  Bg7 {[%clk 0:02:53]} 12. d5 {[%clk 0:02:06]}  Nxe3 {[%clk 0:02:53]} 13. fxe3 {[%clk 0:02:07]}  O-O {[%clk 0:02:54]} 14. Kh1 {[%clk 0:01:59]}  Qd6 {[%clk 0:02:44]} 15. dxc6 {[%clk 0:01:35]}  bxc6 {[%clk 0:02:38]} 16. Qxd6 {[%clk 0:01:34]}  exd6 {[%clk 0:02:38]} 17. Bf3 {[%clk 0:01:35]}  Bb7 {[%clk 0:02:18]} 18. Rfd1 {[%clk 0:01:33]}  Be5 {[%clk 0:02:18]} 19. Ne4 {[%clk 0:01:32]}  Rfd8 {[%clk 0:02:10]} 20. Rab1 {[%clk 0:01:32]}  a5 {[%clk 0:02:04]} 21. b3 {[%clk 0:01:31]}  Rac8 {[%clk 0:01:51]} 22. Nf2 {[%clk 0:01:29]}  Ba6 {[%clk 0:01:43]} 23. Nd3 {[%clk 0:01:27]}  Bg7 {[%clk 0:01:42]} 24. Rbc1 {[%clk 0:01:06]}  Kf8 {[%clk 0:01:41]} 25. Ne1 {[%clk 0:00:36]}  Ke7 {[%clk 0:01:20]} 26. Nc2 {[%clk 0:00:36]}  Bb7 {[%clk 0:01:13]} 27. Nd4 {[%clk 0:00:35]}  Kd7 {[%clk 0:00:53]} 28. Rc2 {[%clk 0:00:26]}  Re8 {[%clk 0:00:51]} 29. Nb5 {[%clk 0:00:19]}  Be5 {[%clk 0:00:50]} 30. Nxd6 {[%clk 0:00:18]}  Bxd6 {[%clk 0:00:50]} 31. c5 {[%clk 0:00:19]}  Rxe3 {[%clk 0:00:48]} 32. Rxd6+ {[%clk 0:00:18]}  Kc7 {[%clk 0:00:48]} 33. h3 {[%clk 0:00:17]}  Rce8 {[%clk 0:00:44]} 34. Rcd2 {[%clk 0:00:17]}  R8e7 {[%clk 0:00:42]} 35. Bg4 {[%clk 0:00:17]}  f5 {[%clk 0:00:42]} 36. Bf3 {[%clk 0:00:17]}  Rc3 {[%clk 0:00:39]} 37. Rf6 {[%clk 0:00:07]}  Rxc5 {[%clk 0:00:37]} 38. Rf8 {[%clk 0:00:08]}  Rce5 {[%clk 0:00:30]} 39. Kh2 {[%clk 0:00:07]}  Rd7 {[%clk 0:00:23]} 40. Rxd7+ {[%clk 0:00:06]}  Kxd7 {[%clk 0:00:24]} 41. Rb8 {[%clk 0:00:04]}  Kc7 {[%clk 0:00:24]} 42. Rf8 {[%clk 0:00:00]}  Re7 {[%clk 0:00:25]} 0-1

[Event "January 2 Late 2024"]
[Site "https://www.chess.com"]
[Date "2024.01.02"]
[Round "1"]
[White "Lagarde, Maxime"]
[Black "Spichkin, Alexander"]
[Result "1-0"]
[Board "77"]
[TimeControl "180+1"]
[WhiteFideId "662399"]
[BlackFideId "4144074"]
[WhiteElo "2786"]
[BlackElo "2435"]
[WhiteTeam "FRA"]
[BlackTeam "RUS"]
[WhiteClock "0:01:08"]
[BlackClock "0:02:15"]

1. d4 {[%clk 0:03:00]}  e6 {[%clk 0:03:00]} 2. c4 {[%clk 0:02:56]}  f5 {[%clk 0:02:59]} 3. g3 {[%clk 0:02:55]}  Nf6 {[%clk 0:02:59]} 4. Bg2 {[%clk 0:02:56]}  Be7 {[%clk 0:02:57]} 5. Nh3 {[%clk 0:02:56]}  O-O {[%clk 0:02:56]} 6. O-O {[%clk 0:02:56]}  d6 {[%clk 0:02:56]} 7. Nc3 {[%clk 0:02:55]}  c6 {[%clk 0:02:56]} 8. d5 {[%clk 0:02:35]}  cxd5 {[%clk 0:02:56]} 9. cxd5 {[%clk 0:02:36]}  e5 {[%clk 0:02:56]} 10. Ng5 {[%clk 0:02:36]}  Na6 {[%clk 0:02:54]} 11. Ne6 {[%clk 0:02:15]}  Bxe6 {[%clk 0:02:53]} 12. dxe6 {[%clk 0:02:16]}  Nc5 {[%clk 0:02:53]} 13. Bg5 {[%clk 0:02:05]}  Kh8 {[%clk 0:02:51]} 14. Bxf6 {[%clk 0:02:00]}  Bxf6 {[%clk 0:02:51]} 15. Qd5 {[%clk 0:01:54]}  Rb8 {[%clk 0:02:50]} 16. b4 {[%clk 0:01:49]}  Na6 {[%clk 0:02:49]} 17. Qb3 {[%clk 0:01:45]}  e4 {[%clk 0:02:45]} 18. Rad1 {[%clk 0:01:41]}  Nc7 {[%clk 0:02:44]} 19. Rd2 {[%clk 0:01:26]}  Bxc3 {[%clk 0:02:40]} 20. Qxc3 {[%clk 0:01:27]}  Nxe6 {[%clk 0:02:41]} 21. Rfd1 {[%clk 0:01:26]}  Qe7 {[%clk 0:02:38]} 22. Rxd6 {[%clk 0:01:25]}  Rfd8 {[%clk 0:02:35]} 23. Qe5 {[%clk 0:01:24]}  Qe8 {[%clk 0:02:25]} 24. Qxe6 {[%clk 0:01:13]}  Qxe6 {[%clk 0:02:19]} 25. Rxd8+ {[%clk 0:01:13]}  Qg8 {[%clk 0:02:18]} 26. Rxg8+ {[%clk 0:01:12]}  Rxg8 {[%clk 0:02:17]} 27. g4 {[%clk 0:01:11]}  g6 {[%clk 0:02:17]} 28. Rd7 {[%clk 0:01:08]}  Rg7 {[%clk 0:02:18]} 29. Rd8+ {[%clk 0:01:07]}  Rg8 {[%clk 0:02:18]} 30. Rxg8+ {[%clk 0:01:08]}  Kxg8 {[%clk 0:02:18]} 31. gxf5 {[%clk 0:01:09]}  gxf5 {[%clk 0:02:18]} 32. Bh3 {[%clk 0:01:09]}  f4 {[%clk 0:02:19]} 33. e3 {[%clk 0:01:08]}  Kf7 {[%clk 0:02:18]} 34. Bf5 {[%clk 0:01:08]}  Kf6 {[%clk 0:02:18]} 35. Bxe4 {[%clk 0:01:09]}  Ke5 {[%clk 0:02:15]} 36. Bxb7 {[%clk 0:01:08]} 1-0

[Event "January 2 Late 2024"]
[Site "https://www.chess.com"]
[Date "2024.01.02"]
[Round "1"]
[White "Morales Garcia, Sergio Joshafatt"]
[Black "Chiu, Isaac"]
[Result "0-1"]
[Board "78"]
[TimeControl "180+1"]
[WhiteFideId "5106249"]
[BlackFideId "30900654"]
[WhiteElo "2434"]
[BlackElo "2785"]
[WhiteTeam "MEX"]
[BlackTeam "USA"]
[WhiteClock "0:00:00"]
[BlackClock "0:01:20"]

1. d4 {[%clk 0:03:00]}  e6 {[%clk 0:02:59]} 2. c4 {[%clk 0:03:00]}  Bb4+ {[%clk 0:02:58]} 3. Nd2 {[%clk 0:02:59]}  d5 {[%clk 0:02:55]} 4. Qa4+ {[%clk 0:02:54]}  Nc6 {[%clk 0:02:55]} 5. cxd5 {[%clk 0:02:52]}  exd5 {[%clk 0:02:55]} 6. Nf3 {[%clk 0:02:52]}  Nf6 {[%clk 0:02:50]} 7. a3 {[%clk 0:02:48]}  Bd6 {[%clk 0:02:47]} 8. e3 {[%clk 0:02:46]}  O-O {[%clk 0:02:46]} 9. Bd3 {[%clk 0:02:42]}  Ne7 {[%clk 0:02:43]} 10. h3 {[%clk 0:02:40]}  Bf5 {[%clk 0:02:42]} 11. Qc2 {[%clk 0:02:35]}  Qd7 {[%clk 0:02:32]} 12. O-O {[%clk 0:02:30]}  Rac8 {[%clk 0:02:30]} 13. Ne5 {[%clk 0:02:25]}  Qe6 {[%clk 0:02:29]} 14. Nef3 {[%clk 0:01:40]}  h6 {[%clk 0:02:19]} 15. b4 {[%clk 0:01:36]}  c6 {[%clk 0:02:13]} 16. Bb2 {[%clk 0:01:35]}  Bxd3 {[%clk 0:02:12]} 17. Qxd3 {[%clk 0:01:35]}  Ne4 {[%clk 0:02:13]} 18. Ne5 {[%clk 0:01:28]}  f6 {[%clk 0:02:07]} 19. Nxe4 {[%clk 0:01:11]}  fxe5 {[%clk 0:01:53]} 20. Nxd6 {[%clk 0:01:07]}  e4 {[%clk 0:01:54]} 21. Nxe4 {[%clk 0:01:01]}  dxe4 {[%clk 0:01:54]} 22. d5 {[%clk 0:00:53]}  Nxd5 {[%clk 0:01:52]} 23. Qd4 {[%clk 0:00:53]}  Qg6 {[%clk 0:01:48]} 24. Rac1 {[%clk 0:00:46]}  Rcd8 {[%clk 0:01:43]} 25. Rfd1 {[%clk 0:00:38]}  Nf4 {[%clk 0:01:39]} 26. Qc4+ {[%clk 0:00:18]}  Nd5 {[%clk 0:01:39]} 27. Rd4 {[%clk 0:00:13]}  Rde8 {[%clk 0:01:32]} 28. b5 {[%clk 0:00:11]}  Re6 {[%clk 0:01:32]} 29. bxc6 {[%clk 0:00:10]}  bxc6 {[%clk 0:01:33]} 30. Qc2 {[%clk 0:00:06]}  Kh7 {[%clk 0:01:28]} 31. Rc4 {[%clk 0:00:00]}  Ne7 {[%clk 0:01:20]} 0-1

[Event "January 2 Late 2024"]
[Site "https://www.chess.com"]
[Date "2024.01.02"]
[Round "1"]
[White "Goltsev, Dmitry"]
[Black "Dobrijevic, Milan"]
[Result "1-0"]
[Board "79"]
[TimeControl "180+1"]
[WhiteFideId "24176710"]
[BlackFideId "931632"]
[WhiteElo "2783"]
[BlackElo "2433"]
[WhiteTeam "RUS"]
[BlackTeam "SRB"]
[WhiteClock "0:00:23"]
[BlackClock "0:00:18"]

1. e4 {[%clk 0:03:00]}  c5 {[%clk 0:03:00]} 2. Nf3 {[%clk 0:03:00]}  g6 {[%clk 0:02:59]} 3. d4 {[%clk 0:03:01]}  cxd4 {[%clk 0:02:58]} 4. Qxd4 {[%clk 0:03:02]}  Nf6 {[%clk 0:02:58]} 5. Nc3 {[%clk 0:03:02]}  Nc6 {[%clk 0:02:58]} 6. Qa4 {[%clk 0:03:02]}  d6 {[%clk 0:02:58]} 7. e5 {[%clk 0:03:02]}  dxe5 {[%clk 0:02:58]} 8. Nxe5 {[%clk 0:03:03]}  Bd7 {[%clk 0:02:57]} 9. Nxd7 {[%clk 0:03:01]}  Qxd7 {[%clk 0:02:56]} 10. Bb5 {[%clk 0:03:01]}  Bg7 {[%clk 0:02:56]} 11. O-O {[%clk 0:03:02]}  O-O {[%clk 0:02:56]} 12. Rd1 {[%clk 0:03:01]}  Qc7 {[%clk 0:02:54]} 13. Bg5 {[%clk 0:03:01]}  Rfd8 {[%clk 0:02:44]} 14. Qh4 {[%clk 0:03:00]}  Rxd1+ {[%clk 0:02:36]} 15. Rxd1 {[%clk 0:03:01]}  Rd8 {[%clk 0:02:36]} 16. Rxd8+ {[%clk 0:02:55]}  Qxd8 {[%clk 0:02:35]} 17. h3 {[%clk 0:02:41]}  Nd4 {[%clk 0:02:22]} 18. Bd3 {[%clk 0:02:30]}  Ne6 {[%clk 0:02:20]} 19. Be3 {[%clk 0:02:21]}  a6 {[%clk 0:02:15]} 20. Qb4 {[%clk 0:02:13]}  Qd7 {[%clk 0:02:08]} 21. Qb6 {[%clk 0:02:07]}  Qc7 {[%clk 0:02:01]} 22. Ne4 {[%clk 0:01:34]}  Nd5 {[%clk 0:01:50]} 23. Qxc7 {[%clk 0:01:31]}  Nexc7 {[%clk 0:01:48]} 24. Bc1 {[%clk 0:01:28]}  Nb4 {[%clk 0:01:40]} 25. a3 {[%clk 0:01:28]}  Nxd3 {[%clk 0:01:40]} 26. cxd3 {[%clk 0:01:29]}  Bd4 {[%clk 0:01:25]} 27. b4 {[%clk 0:01:24]}  Nb5 {[%clk 0:01:21]} 28. a4 {[%clk 0:01:09]}  Nc3 {[%clk 0:01:16]} 29. Nxc3 {[%clk 0:01:03]}  Bxc3 {[%clk 0:01:17]} 30. b5 {[%clk 0:01:04]}  axb5 {[%clk 0:01:17]} 31. axb5 {[%clk 0:00:54]}  f5 {[%clk 0:01:17]} 32. Kf1 {[%clk 0:00:54]}  Kf7 {[%clk 0:01:17]} 33. Ke2 {[%clk 0:00:54]}  Ke6 {[%clk 0:01:17]} 34. Ba3 {[%clk 0:00:51]}  Bd4 {[%clk 0:01:11]} 35. f3 {[%clk 0:00:46]}  Kd7 {[%clk 0:01:10]} 36. Kd2 {[%clk 0:00:39]}  e6 {[%clk 0:01:09]} 37. Kc2 {[%clk 0:00:39]}  Kc7 {[%clk 0:01:09]} 38. Kb3 {[%clk 0:00:39]}  Kb6 {[%clk 0:00:54]} 39. Kc4 {[%clk 0:00:38]}  Be3 {[%clk 0:00:55]} 40. Bb4 {[%clk 0:00:33]}  Bf2 {[%clk 0:00:53]} 41. d4 {[%clk 0:00:29]}  Be3 {[%clk 0:00:53]} 42. Be7 {[%clk 0:00:29]}  Ka5 {[%clk 0:00:52]} 43. Kc5 {[%clk 0:00:28]}  Bc1 {[%clk 0:00:50]} 44. Bd8+ {[%clk 0:00:27]}  Ka4 {[%clk 0:00:50]} 45. Kb6 {[%clk 0:00:28]}  Be3 {[%clk 0:00:49]} 46. Bf6 {[%clk 0:00:28]}  Kb4 {[%clk 0:00:47]} 47. Be5 {[%clk 0:00:24]}  Kc4 {[%clk 0:00:47]} 48. Kxb7 {[%clk 0:00:24]}  Kxb5 {[%clk 0:00:47]} 49. Kc7 {[%clk 0:00:25]}  Kc4 {[%clk 0:00:47]} 50. Kd6 {[%clk 0:00:25]}  Bxd4 {[%clk 0:00:46]} 51. Kxe6 {[%clk 0:00:19]}  Be3 {[%clk 0:00:28]} 52. Kf7 {[%clk 0:00:19]}  Kd3 {[%clk 0:00:26]} 53. Kg7 {[%clk 0:00:18]}  Ke2 {[%clk 0:00:25]} 54. Kxh7 {[%clk 0:00:18]}  g5 {[%clk 0:00:25]} 55. Kg6 {[%clk 0:00:18]}  Kf2 {[%clk 0:00:24]} 56. Kxf5 {[%clk 0:00:18]}  Kxg2 {[%clk 0:00:24]} 57. Kg4 {[%clk 0:00:18]}  Bd2 {[%clk 0:00:23]} 58. Bf6 {[%clk 0:00:19]}  Kf2 {[%clk 0:00:22]} 59. Bxg5 {[%clk 0:00:19]}  Bc3 {[%clk 0:00:20]} 60. h4 {[%clk 0:00:19]}  Ke2 {[%clk 0:00:19]} 61. h5 {[%clk 0:00:20]}  Kd3 {[%clk 0:00:20]} 62. Kf5 {[%clk 0:00:20]}  Kc4 {[%clk 0:00:20]} 63. h6 {[%clk 0:00:20]}  Kd5 {[%clk 0:00:20]} 64. h7 {[%clk 0:00:21]}  Kd6 {[%clk 0:00:20]} 65. Bf6 {[%clk 0:00:22]}  Bxf6 {[%clk 0:00:18]} 66. Kxf6 {[%clk 0:00:23]} 1-0